bitfinex-derivatives/quotes_ETHF0:USTF0_20250817
["timestamp","ask_amount","ask_price","bid_price","bid_amount"]
[1755454310547,1.428,4531.7,4531.6,21.0947]
[1755454311749,0.9426,4531.8,4531.7,1.1651]
[1755454312348,1.428,4531.8,4531.7,1.1651]
[1755454313055,1.428,4531.8,4531.7,1.0377]
[1755454315549,1.428,4531.8,4531.7,1.1651]
[1755454316148,1.0705,4531.8,4531.7,1.1651]
[1755454316354,0.2446,4531.8,4531.7,1.1651]
[1755454318044,0.4077,4532.1,4532.0,1.02655]
[1755454318249,1.1834,4532.1,4532.0,21.53075]
[1755454318653,1.428,4532.1,4532.0,21.53075]
[1755454318949,1.428,4532.1,4531.9,3.2078]
[1755454319149,1.428,4532.1,4532.0,20.051]
[1755454320856,1.428,4532.0,4531.9,3.2078]
[1755454321056,1.428,4532.0,4531.9,20.05]
[1755454322552,0.4174,4531.4,4531.3,3.2078]
[1755454322756,1.428,4531.4,4531.3,24.2955]
[1755454322959,1.428,4531.4,4531.3,24.73661]
[1755454323855,0.2446,4531.4,4531.3,24.73661]
[1755454324156,0.2446,4531.4,4531.3,24.86401]
[1755454324558,0.4854,4531.4,4531.3,24.86401]
[1755454325154,0.2446,4531.4,4531.3,24.86401]
[1755454325655,0.6523,4531.4,4531.3,24.86401]
[1755454325856,1.0098,4531.4,4531.3,24.86401]
[1755454326056,1.428,4531.4,4531.3,24.73661]
[1755454326654,1.428,4531.4,4531.3,24.28441]
[1755454326862,1.428,4531.4,4531.3,24.73661]
[1755454329560,1.428,4531.4,4531.3,24.86401]
[1755454329751,1.0705,4531.4,4531.3,24.73661]
[1755454329955,0.2408,4531.7,4531.6,0.1593]
[1755454330155,1.0098,4531.7,4531.6,21.65519]
[1755454330755,0.2408,4532.6,4531.8,0.44106]
[1755454330958,1.0106,4532.1,4532.0,4.68655]
[1755454331158,1.1775,4532.1,4532.0,24.73555]
[1755454331465,1.428,4532.1,4532.0,24.2945]
[1755454332562,1.428,4532.1,4532.0,3.7933]
[1755454332763,1.428,4532.1,4532.0,23.2568]
[1755454336259,1.428,4532.1,4532.0,3.2078]
[1755454336468,1.428,4532.1,4532.0,23.2558]
[1755454337966,1.428,4532.1,4532.0,23.5106]
[1755454338368,1.428,4532.1,4532.0,23.7067]
[1755454338572,1.4472,4532.1,4532.0,24.2907]
[1755454338963,0.2446,4532.1,4532.0,24.4176]
[1755454339964,0.4926,4532.1,4532.0,24.4176]
[1755454340664,0.81,4532.6,4532.5,0.584]
[1755454340971,2.0540978,4532.6,4532.5,21.0819]
[1755454342269,2.0540978,4532.6,4532.5,20.8858]
[1755454343567,2.0540978,4532.6,4532.0,3.64884]
[1755454343772,1.4415,4532.1,4532.0,3.2078]
[1755454344070,1.4415,4532.1,4532.0,23.5086]
[1755454344464,1.4415,4532.1,4532.0,23.94965]
[1755454344666,1.4415,4532.1,4532.0,24.53365]
[1755454344971,1.4415,4532.1,4532.0,24.72975]
[1755454346066,1.058,4532.1,4532.0,23.2538]
[1755454346269,1.4415,4532.1,4532.0,23.5086]
[1755454346569,1.4415,4532.1,4532.0,24.2887]
[1755454350965,1.058,4532.6,4532.5,1.0349]
[1755454351171,2.05428215,4532.6,4532.5,21.0799]
[1755454353170,0.77108215,4532.6,4532.5,24.0916]
[1755454353472,0.6452,4532.6,4532.5,24.4146]
[1755454354171,1.4415,4532.6,4532.5,24.4146]
[1755454354373,1.4415,4532.6,4532.5,24.2877]
[1755454354768,1.4415,4532.6,4532.5,3.2078]
[1755454354969,1.4415,4532.6,4532.5,23.2518]
[1755454356876,1.6283879,4532.6,4532.5,23.2518]
[1755454357182,1.62838574,4532.6,4532.5,23.2518]
[1755454359171,1.63454528,4532.6,4532.5,23.2518]
[1755454361581,1.63454528,4532.6,4532.5,24.2867]
[1755454363680,1.63454528,4532.6,4532.5,24.0906]
[1755454364778,1.25104528,4532.6,4532.5,23.2518]
[1755454364976,1.63454528,4532.6,4532.5,24.2867]
[1755454365982,1.44765954,4532.6,4532.5,24.2867]
[1755454366177,1.63457715,4532.6,4532.5,24.2867]
[1755454366580,1.63458027,4532.6,4532.5,24.2867]
[1755454366779,1.63458027,4532.6,4532.5,3.2078]
[1755454366976,1.63458372,4532.6,4532.5,23.2488]
[1755454367479,1.63458372,4532.6,4532.5,20.041]
[1755454368680,0.5761,4532.1,4532.0,3.2078]
[1755454368875,1.4497,4532.1,4532.0,20.041]
[1755454369078,0.76307555,4532.1,4531.5,0.2551]
[1755454369274,0.5761,4531.7,4531.6,20.041]
[1755454369584,0.5761,4531.2,4531.1,32.0281]
[1755454369775,1.4497,4531.2,4531.1,52.0691]
[1755454370276,1.4497,4531.2,4531.1,51.814]
[1755454371476,1.0314,4531.0,4530.3,3.4629]
[1755454371677,1.0314,4531.0,4530.2,0.63753]
[1755454371678,0.58225954,4532.6,4532.5,0.5772]
[1755454371986,0.26205954,4532.6,4532.5,24.4195]
[1755454372478,1.45585954,4532.6,4532.5,3.785]
[1755454372677,1.45585954,4532.6,4532.5,23.946]
[1755454372880,1.45585954,4532.6,4532.5,24.2011]
[1755454373183,1.45585954,4532.6,4532.5,24.3974]
[1755454374587,1.45585954,4532.6,4532.5,24.8384]
[1755454377889,0.51455954,4532.6,4532.5,24.8384]
[1755454378089,0.51975954,4532.6,4532.5,24.8384]
[1755454378290,1.45585954,4532.6,4532.5,24.8384]
[1755454378684,1.09585954,4532.6,4532.5,24.8384]
[1755454378883,1.45585954,4532.6,4532.5,24.8384]
[1755454380891,1.45585954,4532.6,4532.5,24.3974]
[1755454383287,1.45585954,4532.6,4532.5,23.3688]
[1755454383493,1.6645437,4532.6,4532.5,3.2078]
[1755454383890,1.6645437,4532.6,4532.5,23.3488]
[1755454385493,1.6425437,4532.6,4532.5,23.3488]
[1755454390994,1.6425437,4532.6,4532.5,3.2078]
[1755454391196,1.6425437,4532.6,4532.5,23.3338]
[1755454392300,1.6425437,4532.6,4532.5,3.2078]
[1755454392500,1.6425437,4532.6,4532.5,23.3308]
[1755454392701,1.45585954,4532.6,4532.5,23.3308]
[1755454392897,1.64351333,4532.6,4532.5,23.3308]
[1755454395305,2.25240156,4532.6,4532.5,23.3308]
[1755454395699,2.25240156,4532.6,4532.5,23.5853]
[1755454395906,2.25241165,4532.6,4532.5,23.7812]
[1755454396305,2.25241165,4532.6,4532.5,23.9496]
[1755454396605,2.25241165,4532.6,4532.5,24.3584]
[1755454397806,2.25241165,4532.6,4532.5,23.5853]
[1755454398505,2.25241165,4532.6,4532.5,23.3308]
[1755454398701,2.25241165,4532.6,4532.5,23.3178]
[1755454401403,2.25241165,4532.6,4532.5,3.2078]
[1755454402007,2.25258402,4532.6,4532.5,3.2078]
[1755454405208,2.25259095,4532.6,4532.5,3.2078]
[1755454408111,2.25261439,4532.6,4532.5,3.2078]
[1755454410109,0.8489,4532.5,4532.3,20.3461]
[1755454410414,2.22105485,4532.4,4532.3,20.3461]
[1755454410915,2.22252037,4532.4,4532.3,20.3461]
[1755454411116,2.22256307,4532.4,4532.3,20.3461]
[1755454411912,1.86566307,4532.4,4531.9,3.2078]
[1755454412117,1.4243,4532.0,4531.9,4.2327]
[1755454412317,1.61220932,4532.0,4531.9,24.3187]
[1755454415910,1.61220932,4532.0,4531.9,23.8673]
[1755454416116,2.2228612,4532.0,4531.9,3.2078]
[1755454416320,2.2228612,4532.0,4531.9,23.7392]
[1755454416518,2.2228612,4532.0,4531.9,24.3127]
[1755454418421,2.2228612,4532.0,4531.9,3.2078]
[1755454418632,0.5754,4531.8,4531.7,0.2551]
[1755454418924,1.2575,4531.7,4531.6,20.4339]
[1755454419126,2.2228612,4531.7,4531.6,20.8478]
[1755454419527,2.2228612,4531.7,4531.6,21.23]
[1755454420227,0.84815188,4531.7,4531.6,21.23]
[1755454420427,1.03577073,4531.7,4531.6,21.23]
[1755454420726,0.79827073,4531.7,4531.6,21.1029]
[1755454421027,0.18761885,4531.7,4531.6,21.23]
[1755454421227,0.1875427,4531.7,4531.6,21.23]
[1755454423630,0.42502795,4531.7,4531.6,21.23]
[1755454426536,0.42502082,4531.7,4531.6,21.23]
[1755454428443,0.67452082,4531.7,4531.6,21.23]
[1755454429540,0.67453736,4531.7,4531.6,21.23]
[1755454429839,0.86207472,4531.7,4531.6,21.23]
[1755454430943,0.86207472,4531.7,4531.6,24.4378]
[1755454431242,1.22447472,4531.7,4531.6,24.4378]
[1755454431443,0.97497472,4531.7,4531.6,24.4378]
[1755454431640,1.22447472,4531.7,4531.6,24.4378]
[1755454433645,1.39317472,4531.7,4531.6,24.4378]
[1755454433847,1.56387472,4531.7,4531.6,24.4378]
[1755454435345,2.17423528,4531.7,4531.6,24.4378]
[1755454435649,1.98669792,4531.7,4531.6,24.4378]
[1755454435843,2.17427803,4531.7,4531.6,24.4378]
[1755454436347,2.42597803,4531.7,4531.6,24.4378]
[1755454437846,0.98547803,4531.7,4531.6,24.87919]
[1755454438046,0.238,4532.3,4531.6,23.8866]
[1755454438247,0.238,4532.3,4532.2,4.0499]
[1755454438453,1.09780843,4532.3,4532.2,24.1079]
[1755454438648,2.05130843,4532.3,4532.2,3.726]
[1755454438855,2.05130843,4532.3,4532.2,23.2678]
[1755454440059,2.05130843,4532.3,4532.2,23.26638977]
[1755454440543,2.05254447,4532.3,4532.2,23.26638977]
[1755454441047,2.05254447,4532.3,4532.2,3.20238977]
[1755454441354,2.05254447,4532.3,4532.2,23.26638977]
[1755454442355,2.05254447,4532.3,4532.2,23.87238977]
[1755454442557,2.05254447,4532.3,4532.2,23.98108977]
[1755454443055,2.05254447,4532.3,4532.2,23.26638977]
[1755454444559,2.05254447,4532.3,4532.2,3.20238977]
[1755454444859,2.05254447,4532.3,4532.2,23.25938977]
[1755454454164,2.05254447,4532.3,4532.2,3.20238977]
[1755454454765,2.05254447,4532.3,4532.2,3.27028977]
[1755454455166,2.05254447,4532.3,4532.2,3.46678977]
[1755454455466,2.05254447,4532.3,4532.2,3.64028977]
[1755454456668,2.05254447,4532.3,4532.2,3.80838977]
[1755454462870,2.05254447,4532.3,4532.2,3.27028977]
[1755454464770,2.05254447,4532.3,4532.2,3.46658977]
[1755454465272,2.05254447,4532.3,4532.2,3.79918977]
[1755454466870,2.05254447,4532.3,4532.2,3.60288977]
[1755454467077,2.05254447,4532.3,4532.2,3.20238977]
[1755454468565,2.05254447,4532.3,4532.2,3.26998977]
[1755454468768,2.05254447,4532.3,4532.2,3.79888977]
[1755454468971,2.05254447,4532.3,4532.2,3.90698977]
[1755454471281,0.61154447,4532.3,4532.2,3.90698977]
[1755454471474,1.09294447,4532.3,4532.2,4.03408977]
[1755454471780,1.63774447,4532.3,4532.2,4.03408977]
[1755454472680,1.88374447,4532.3,4532.2,4.03408977]
[1755454472985,2.04114447,4532.3,4532.2,3.90698977]
[1755454473280,2.04114447,4532.3,4532.2,3.46628977]
[1755454473474,2.04114447,4532.3,4532.2,3.79888977]
[1755454473676,2.04114447,4532.3,4532.2,3.90698977]
[1755454474180,2.04114447,4532.3,4532.2,0.7046]
[1755454476689,2.04114447,4532.3,4532.2,0.241]
[1755454476887,2.04114447,4532.3,4532.2,0.0676]
[1755454477282,2.04114447,4532.3,4532.2,0.4373]
[1755454477588,2.04114447,4532.3,4532.2,0.5965]
[1755454477786,2.04114447,4532.3,4532.2,0.7045]
[1755454489891,2.04114447,4532.3,4532.0,20.055]
[1755454490090,1.4592,4532.1,4532.0,20.1225]
[1755454490292,2.07074447,4532.1,4532.0,20.3188]
[1755454490485,2.07074447,4532.1,4532.0,0.2638]
[1755454490690,2.07074447,4532.1,4531.7,23.2608]
[1755454490691,0.5621,4531.8,4531.7,23.7077]
[1755454490892,1.4592,4531.8,4531.7,23.904]
[1755454491094,2.07074447,4531.8,4531.7,23.904]
[1755454491591,2.07074447,4531.8,4531.7,3.9185]
[1755454496792,2.07074447,4531.8,4531.7,4.0456]
[1755454497191,2.07074447,4531.8,4531.7,3.9185]
[1755454498190,2.07074447,4531.8,4531.7,3.2078]
[1755454498586,2.07074447,4531.8,4531.7,3.2753]
[1755454498993,2.07074447,4531.8,4531.7,3.9185]
[1755454504096,0.54404447,4531.8,4531.7,7.0676]
[1755454504293,0.658,4533.0,4532.9,0.3388]
[1755454504494,0.5177,4533.2,4533.0,0.1963]
[1755454504798,1.0347,4533.2,4533.1,0.6622]
[1755454505301,1.2949,4533.2,4533.1,0.6622]
[1755454505494,1.0798,4533.7,4533.6,0.3388]
[1755454505799,1.2949,4533.7,4533.6,0.6622]
[1755454506600,0.9155,4533.7,4533.6,0.6622]
[1755454506799,1.2949,4533.7,4533.6,0.6622]
[1755454508503,0.6194,4533.7,4533.6,0.5351]
[1755454508699,1.2949,4533.7,4533.6,0.5351]
[1755454508899,1.2949,4533.7,4533.6,0.6622]
[1755454509200,1.4592,4533.7,4533.6,0.6622]
[1755454509696,1.4592,4534.2,4534.1,0.3388]
[1755454509904,1.4592,4534.2,4534.1,0.5351]
[1755454513993,3.2078,4534.9,4533.7,20.05]
[1755454514200,1.0347,4533.9,4533.8,3.5466]
[1755454514500,1.2949,4533.9,4533.8,3.6737]
[1755454514701,1.4592,4533.9,4533.8,3.7429]
[1755454515303,1.4592,4533.9,4533.8,3.87]
[1755454518103,1.4671,4533.9,4533.8,3.2078]
[1755454518605,1.4671,4533.9,4533.8,3.7325]
[1755454525008,1.4671,4533.9,4533.8,3.2078]
[1755454526603,1.4671,4533.9,4533.3,3.2078]
[1755454526915,1.4542,4533.4,4533.3,23.7755]
[1755454527507,31.776,4535.4,4533.3,23.7755]
[1755454527508,4.0724,4534.9,4533.7,0.44088]
[1755454527708,1.4542,4534.8,4534.7,0.5247]
[1755454527904,0.5896,4534.8,4534.4,20.043]
[1755454528109,1.4542,4534.5,4534.4,20.6947]
[1755454528309,0.8326,4535.1,4535.0,0.3285]
[1755454528612,1.2199,4535.1,4535.0,0.5247]
[1755454528813,1.4542,4535.1,4535.0,0.5247]
[1755454529113,1.4542,4535.1,4535.0,0.3285]
[1755454529808,1.19904131,4535.1,4534.3,3.2078]
[1755454530008,1.4542,4534.4,4534.3,3.2078]
[1755454530208,1.4542,4534.4,4534.3,3.5725]
[1755454530414,1.4542,4534.4,4534.3,3.7325]
[1755454532710,1.4542,4534.4,4534.3,3.8595]
[1755454533516,0.3873,4535.2,4534.4,0.1962]
[1755454533716,0.8646,4535.0,4534.4,0.1962]
[1755454533919,1.20014289,4534.9,4534.8,0.1685]
[1755454534121,2.06474289,4534.9,4534.8,0.1685]
[1755454534521,2.06474289,4534.9,4534.8,0.5247]
[1755454535620,2.06474289,4534.9,4534.8,0.3285]
[1755454535913,2.06474289,4534.9,4534.8,0.5247]
[1755454538527,2.06474289,4534.9,4534.5,0.1962]
[1755454538820,1.4542,4534.6,4534.5,0.5247]
[1755454539020,2.06474289,4534.6,4534.5,0.5247]
[1755454540122,1.0669,4534.4,4534.3,3.2078]
[1755454540327,2.06474289,4534.4,4534.3,3.2078]
[1755454540619,1.20014289,4534.4,4533.8,3.404]
[1755454540926,1.4542,4533.9,4533.8,3.7325]
[1755454541127,2.06474289,4533.9,4533.8,3.7325]
[1755454545531,1.4542,4533.9,4533.8,3.7325]
[1755454545928,1.4542,4533.9,4533.8,3.8595]
[1755454547639,1.4542,4533.9,4533.8,3.7325]
[1755454548744,1.4542,4533.9,4533.8,23.7735]
[1755454551545,1.4542,4533.9,4533.8,23.9005]
[1755454552041,1.4542,4533.9,3725.0,0.5]
[1755454552042,1.4146,4533.4,4533.3,3.2078]
[1755454552342,1.2544,4533.4,4533.3,3.7309]
[1755454552539,1.2544,4533.4,4533.3,23.8979]
[1755454552940,1.4146,4533.4,4533.3,23.8979]
[1755454553245,1.4146,4533.4,4533.3,23.7709]
[1755454558748,1.62005348,4533.4,4533.3,23.7709]
[1755454561052,1.62005348,4533.4,4533.3,23.2478]
[1755454561948,0.77285348,4533.4,4532.8,3.2078]
[1755454562149,0.9225,4532.9,4532.8,3.2078]
[1755454562453,1.4146,4532.9,4532.8,3.2078]
[1755454562853,1.62005348,4532.9,4532.8,3.2078]
[1755454563346,1.62005348,4532.9,4532.8,3.7309]
[1755454564950,0.20545348,4532.9,4532.8,3.6617]
[1755454565151,0.4864,4533.9,4532.8,6.2298]
[1755454565351,0.8993,4533.9,4533.8,0.1602]
[1755454565551,0.8993,4533.9,4533.8,20.32]
[1755454565747,1.2544,4533.9,4533.8,20.32]
[1755454565954,1.4146,4533.9,4533.8,20.32]
[1755454566248,0.3551,4534.2,4533.8,20.32]
[1755454566450,0.8472,4534.3,4534.0,0.1602]
[1755454566756,1.1712,4534.3,4534.2,0.1602]
[1755454566944,1.1712,4534.3,4534.2,20.2022]
[1755454567251,1.4146,4534.3,4534.2,20.2022]
[1755454569450,1.4146,4534.3,4534.2,20.042]
[1755454569658,2.02564889,4534.3,4534.2,20.042]
[1755454569859,1.17844889,4534.3,4533.8,20.041]
[1755454570056,0.5674,4533.9,4533.8,20.041]
[1755454570261,1.4146,4533.9,4533.8,20.041]
[1755454570461,1.4146,4533.9,4533.6,3.2078]
[1755454570761,1.4146,4533.8,4533.7,20.041]
[1755454571060,1.4146,4533.8,4533.7,20.2012]
[1755454572661,0.4921,4533.8,4533.7,20.3186]
[1755454573262,1.0114,4533.8,4533.7,20.3186]
[1755454573458,0.2434,4534.5,4533.7,20.3186]
[1755454573659,1.0595,4534.3,4534.2,3.368]
[1755454573860,1.0595,4534.3,4534.2,23.408]
[1755454574064,1.4146,4534.3,4534.2,23.408]
[1755454576360,2.02552094,4534.3,4534.2,23.2478]
[1755454578259,2.02552094,4534.3,4534.2,2.8176]
[1755454578765,1.17832094,4534.3,4533.8,20.038]
[1755454578966,1.4905,4534.1,4534.0,0.7818]
[1755454580466,1.4905,4534.1,4533.8,20.038]
[1755454580760,0.5872,4534.1,4533.8,20.038]
[1755454580964,0.5872,4534.0,4533.9,0.3724]
[1755454581265,0.5872,4534.0,4533.9,0.7818]
[1755454581668,1.4905,4534.0,4533.9,0.7818]
[1755454582066,1.4905,4534.0,4533.9,0.8992]
[1755454582067,0.8467,4534.0,4533.9,0.8992]
[1755454583366,1.4905,4534.0,4533.9,0.7818]
[1755454584273,1.1037,4534.0,4533.9,0.7818]
[1755454584771,1.4905,4534.0,4533.9,0.7818]
[1755454585473,1.4905,4534.0,4533.9,20.053]
[1755454586163,0.3868,4533.9,4533.7,3.2078]
[1755454586372,0.5872,4533.8,4533.7,3.2078]
[1755454586571,1.4905,4533.8,4533.7,23.2598]
[1755454586772,1.4905,4533.8,4533.7,23.6322]
[1755454588273,1.4905,4533.8,4533.7,24.0416]
[1755454589767,1.4905,4533.8,4533.7,23.2598]
[1755454590570,1.4905,4533.8,4533.7,23.6322]
[1755454590771,1.4905,4533.8,4533.7,3.5802]
[1755454590976,1.4905,4533.8,4533.7,23.2518]
[1755454592767,1.4905,4533.8,4533.7,3.2078]
[1755454592971,0.5872,4533.6,4533.5,20.049]
[1755454593268,1.4905,4533.4,4533.3,20.049]
[1755454597977,1.4905,4533.4,4533.3,20.4214]
[1755454599486,1.4905,4533.4,4533.3,20.8308]
[1755454601682,1.4905,4533.4,4533.3,0.6089]
[1755454601877,0.5872,4533.4,4533.2,23.2488]
[1755454602082,1.4905,4533.3,4533.2,23.6212]
[1755454603186,1.4905,4533.3,4533.2,23.2488]
[1755454603782,1.4905,4533.3,4533.2,23.6212]
[1755454607785,1.4905,4533.3,4533.2,20.4134]
[1755454607988,1.4905,4533.3,4533.2,20.041]
[1755454608296,0.5628,4533.1,4533.0,20.041]
[1755454608495,1.4257,4533.1,4533.0,20.041]
[1755454608991,1.4257,4533.1,4533.0,20.4086]
[1755454609693,1.4257,4533.1,4533.0,20.8365]
[1755454613698,3.2078,4533.7,4533.0,20.8365]
[1755454613900,0.5628,4533.1,4533.0,20.4689]
[1755454614094,1.4257,4533.1,4533.0,20.4689]
[1755454614501,1.4257,4533.1,4533.0,20.8365]
[1755454615804,1.4257,4533.1,4533.0,20.4086]
[1755454616304,1.4257,4533.1,4533.0,20.8365]
[1755454617806,1.4257,4533.1,4533.0,20.9542]
[1755454618006,1.4257,4533.1,4533.0,20.8365]
[1755454619401,1.4257,4533.1,4533.0,20.041]
[1755454620607,1.4257,4533.1,4533.0,20.4086]
[1755454622212,2.03672278,4533.1,4533.0,20.4086]
[1755454622913,2.03672278,4533.1,4532.7,3.2078]
[1755454622914,1.4477,4532.8,4532.7,3.2078]
[1755454623208,1.4257,4532.3,4532.2,3.2078]
[1755454623408,2.03672278,4532.3,4532.2,3.2078]
[1755454624913,2.03672278,4532.3,4532.2,3.5754]
[1755454625304,2.03672278,4532.3,4532.2,3.2078]
[1755454625511,2.03672278,4532.3,4531.8,20.041]
[1755454625707,0.5628,4531.9,4531.8,20.4086]
[1755454626017,0.5628,4531.9,4531.8,0.3676]
[1755454626018,1.4257,4531.9,4531.8,0.3676]
[1755454626316,1.4257,4531.9,4531.7,3.2078]
[1755454626518,2.03561755,4531.8,4531.7,3.2078]
[1755454627217,1.4257,4531.8,4531.7,3.2078]
[1755454627416,1.4257,4531.8,4531.7,3.5754]
[1755454629120,1.4257,4531.8,4531.7,0.3676]
[1755454629722,0.5024,4531.7,4531.1,3.2078]
[1755454629910,1.4257,4531.3,4531.2,0.7955]
[1755454632923,1.4257,4531.3,4531.1,23.2548]
[1755454633224,1.4257,4531.2,4531.1,23.2548]
[1755454633526,1.4257,4531.2,4531.1,3.2078]
[1755454633919,1.4257,4531.2,4531.1,3.5754]
[1755454635426,1.4257,4531.2,4531.1,3.2078]
[1755454636327,1.4257,4531.2,4531.1,3.5754]
[1755454637318,1.4257,4531.2,4531.1,0.3676]
[1755454637515,1.4257,4531.2,4530.6,20.047]
[1755454637829,1.4265,4530.7,4530.6,20.4419]
[1755454638421,1.4265,4530.7,4530.6,20.8264]
[1755454642527,1.4265,4530.7,4530.6,20.944]
[1755454650636,1.4265,4530.7,4530.6,20.8264]
[1755454653538,1.4265,4530.7,4530.6,20.944]
[1755454659542,1.4265,4530.7,4530.6,20.8264]
[1755454663341,0.258,4530.6,4530.4,3.2078]
[1755454663547,0.5645,4530.5,4530.4,3.2078]
[1755454663747,1.4265,4530.5,4530.4,23.2568]
[1755454664649,1.4265,4530.5,4530.4,23.876]
[1755454664847,1.4265,4530.5,4530.4,24.0362]
[1755454681964,1.4265,4530.5,4530.4,23.876]
[1755454682468,0.8983,4530.4,4529.8,3.2078]
[1755454682766,1.449,4529.9,4529.8,3.2078]
[1755454682954,2.06119554,4529.9,4529.8,3.2078]
[1755454686467,0.5507,4529.4,4529.3,3.2078]
[1755454686672,1.449,4529.4,4529.3,3.2078]
[1755454686873,2.24648625,4529.4,4529.3,3.2078]
[1755454687268,1.63577327,4529.4,4529.3,3.2078]
[1755454687570,1.0606,4529.2,4529.1,0.09935639]
[1755454687773,1.63577327,4529.2,4529.1,0.09935639]
[1755454692078,1.449,4529.2,4529.1,0.09935639]
[1755454692279,1.63539599,4529.2,4529.1,0.09935639]
[1755454692779,1.63533756,4529.2,4529.1,0.09935639]
[1755454697980,1.63533756,4529.2,4529.1,0.47075639]
[1755454698777,1.63533756,4529.2,4529.1,0.09935639]
[1755454698980,0.2507,4529.2,4529.1,1.00445639]
[1755454699184,0.2363,4529.4,4529.3,0.164]
[1755454699484,1.0596,4529.7,4529.6,0.164]
[1755454699675,1.60116531,4529.7,4529.2,3.2078]
[1755454699875,1.415,4529.4,4529.2,3.2078]
[1755454700076,0.8476,4529.3,4529.1,0.09935639]
[1755454700281,1.415,4529.2,4529.1,0.47075639]
[1755454700683,4.80895334,4529.2,4529.1,0.09935639]
[1755454700877,5.41764254,4529.2,4529.1,0.09935639]
[1755454701082,0.5674,4528.3,4528.2,3.6234]
[1755454701386,0.5674,4528.3,4528.2,0.787]
[1755454701387,1.415,4528.3,4528.2,0.787]
[1755454701884,1.415,4528.3,4527.7,3.2078]
[1755454702089,1.415,4527.8,4527.7,3.9948]
[1755454702683,1.415,4527.8,4527.7,4.1129]
[1755454704088,1.415,4527.8,4527.7,3.9948]
[1755454708087,3.2078,4528.7,4527.7,3.9948]
[1755454708287,0.79462016,4528.6,4527.8,0.4895]
[1755454708487,1.415,4528.4,4528.3,0.2516]
[1755454708688,1.60108234,4528.4,4528.3,0.787]
[1755454709191,2.2098083,4528.4,4528.3,0.787]
[1755454709990,0.83558234,4528.4,4528.3,0.787]
[1755454710188,0.18608234,4528.4,4528.3,0.787]
[1755454710394,0.35848234,4528.8,4528.3,0.4156]
[1755454710598,0.2559,4528.6,4528.5,0.4156]
[1755454710898,0.59939734,4528.6,4528.5,0.9051]
[1755454711090,1.36489734,4528.6,4528.5,0.787]
[1755454711292,1.60119734,4528.6,4528.5,0.787]
[1755454711687,0.3297,4528.4,4528.3,0.3714]
[1755454711991,1.415,4528.3,4528.2,3.2078]
[1755454712196,1.415,4528.3,4528.2,3.5792]
[1755454712494,1.415,4528.3,4528.2,3.8308]
[1755454712495,1.60142313,4528.3,4528.2,3.8308]
[1755454712788,1.60142313,4528.3,4528.2,3.9948]
[1755454712989,1.415,4528.3,4528.2,3.9948]
[1755454713190,1.0596,4528.3,4528.2,4.1129]
[1755454713388,1.24605346,4528.3,4528.2,4.1129]
[1755454713591,1.24606354,4528.3,4528.2,4.1129]
[1755454713793,1.24606354,4528.3,4528.2,3.9948]
[1755454713989,1.60146354,4528.3,4528.2,3.9948]
[1755454716996,1.60146354,4528.3,4528.2,3.4594]
[1755454717195,1.60146354,4528.3,4528.2,3.2078]
[1755454717495,2.21275853,4528.3,4528.2,3.2078]
[1755454719094,2.21275853,4528.3,4528.2,3.5792]
[1755454719591,2.21290157,4528.3,4528.2,3.2078]
[1755454719796,2.21290157,4528.3,4528.2,3.5792]
[1755454719998,2.02629499,4528.3,4528.2,3.5792]
[1755454720302,2.21290158,4528.3,4528.2,3.2078]
[1755454720502,2.21292563,4528.3,4528.2,3.5792]
[1755454722097,2.21292563,4528.3,4528.2,3.2078]
[1755454723800,1.61982563,4528.3,4528.2,3.4594]
[1755454724005,0.85123064,4528.3,4528.2,4.1129]
[1755454724208,0.18663064,4528.3,4528.2,4.1129]
[1755454725404,0.42293064,4528.3,4528.2,4.1129]
[1755454726700,0.4922,4528.1,4528.0,0.1401]
[1755454726905,0.67883064,4528.1,4528.0,0.4156]
[1755454727416,1.60163064,4528.1,4528.0,0.787]
[1755454728809,1.415,4528.1,4528.0,0.787]
[1755454729008,1.60188236,4528.1,4528.0,0.787]
[1755454729307,0.8219,4528.1,4528.0,0.9051]
[1755454729503,1.00884555,4528.1,4528.0,0.9051]
[1755454729699,1.00884854,4528.1,4528.0,0.9051]
[1755454729902,1.36534854,4528.1,4528.0,0.787]
[1755454730104,1.61254854,4528.1,4528.0,0.787]
[1755454730708,0.67914854,4528.1,4528.0,0.9051]
[1755454731606,0.84894854,4528.1,4528.0,0.9051]
[1755454731803,1.01384854,4528.1,4528.0,0.9051]
[1755454732010,1.61754854,4528.1,4528.0,0.787]
[1755454732519,2.23033431,4528.1,4528.0,0.787]
[1755454735809,2.23033431,4528.1,4528.0,0.623]
[1755454736309,2.23033431,4528.1,4528.0,0.7827]
[1755454737909,0.2363,4528.1,4528.0,0.9008]
[1755454738110,0.18710219,4528.1,4528.0,0.5294]
[1755454738507,0.43360219,4528.1,4528.0,0.5294]
[1755454738711,0.43360219,4528.1,4528.0,0.9175]
[1755454738911,0.67430219,4528.1,4528.0,0.9175]
[1755454740412,0.18710219,4528.1,4528.0,0.9175]
[1755454742014,0.18710219,4528.1,4528.0,1.35894]
[1755454742313,0.8219,4528.8,4528.7,0.4103]
[1755454742514,1.68206622,4528.8,4528.7,0.7132]
[1755454742711,0.2465,4529.0,4528.7,0.5284]
[1755454742910,0.657,4529.0,4528.9,0.8313]
[1755454743111,1.27002925,4529.0,4528.9,0.8313]
[1755454743510,2.03862925,4529.0,4528.9,0.7132]
[1755454743714,1.02932925,4529.0,4528.9,0.7132]
[1755454743915,2.03862925,4529.0,4528.9,0.7132]
[1755454744317,2.03862925,4529.0,4528.9,0.1597]
[1755454744509,0.417,4528.6,4528.5,3.2078]
[1755454744711,0.8284,4528.6,4528.5,3.6181]